fUSD/lending_fUSD_20260106
["ID","MTS","AMOUNT","RATE_DAILY","PERIOD"]
[400590632,1767736238870,-367.0,0.00027397,7]
[400590634,1767736238879,-388.8,0.00027397,6]
[400590636,1767736238889,-339.98,0.00027397,30]
[400590638,1767736238898,-150.0,0.00027397,5]
[400590639,1767736238908,-158.77343996,0.00027397,5]
[400590641,1767736238918,-5057.1702918,0.00027449,2]
[400590643,1767736238927,-138768.0595993,0.00027547,2]
[400590645,1767736238937,-1000.0,0.00027788,2]
[400590647,1767736238950,-200.0,0.00027799,2]
[400590649,1767736238960,-207.4,0.00027799,2]
[400590651,1767736238969,-215.0738,0.00027799,2]
[400590653,1767736238979,-223.0315306,0.00027799,2]
[400590655,1767736238990,-231.28369723,0.00027799,2]
[400590657,1767736239000,-239.84119403,0.00027799,2]
[400590659,1767736239010,-248.71531821,0.00027799,2]
[400590661,1767736239021,-257.91778498,0.00027799,2]
[400590663,1767736239030,-267.46074303,0.00027799,2]
[400590665,1767736239040,-277.35679052,0.00027799,2]
[400590667,1767736239049,-1707.79145292,0.0002784,2]
[400590669,1767736239061,-11495.57013769,0.0002784,2]
[400590671,1767736239071,-374.62342154,0.00027842,2]
[400590673,1767736239083,-250.0,0.00027945,5]
[400590675,1767736239093,-350.0,0.00028493,5]
[400590677,1767736239103,-163.41,0.00028915,2]
[400590679,1767736239113,-2051.8,0.00028938,2]
[400590681,1767736239123,-899.0,0.0002903,2]
[400590683,1767736239133,-450.0,0.00029041,5]
[400590685,1767736239143,-899.0,0.00029128,2]
[400590687,1767736239152,-287.61899177,0.00029168,2]
[400590689,1767736239161,-901.0,0.00029189,2]
[400590691,1767736239171,-899.0,0.00029235,2]
[400590693,1767736239181,-899.0,0.00029418,2]
[400590695,1767736239190,-604.27852476,0.00029429,2]
[400590697,1767736239199,-899.0,0.00029457,2]
[400590699,1767736239209,-604.27852476,0.00029514,5]
[400590701,1767736239218,-432.31509578,0.00029589,5]
[400590703,1767736239229,-604.27852476,0.000296,9]
[400590705,1767736239239,-604.27852476,0.00029685,13]
[400590707,1767736239248,-899.0,0.00029727,2]
[400590709,1767736239259,-904.0,0.00029758,2]
[400590711,1767736239269,-604.27852476,0.00029771,16]
[400590713,1767736239279,-604.27852476,0.00029856,20]
[400590715,1767736239289,-502.0,0.00029877,2]
[400590717,1767736239298,-604.27852476,0.00029942,24]
[400590719,1767736239307,-899.0,0.00029955,2]
[400590721,1767736239317,-3907.34,0.0003,7]
[400590723,1767736239326,-604.27852476,0.00030027,28]
[400590726,1767736239336,-899.0,0.00030057,2]
[400590727,1767736239346,-477.82498524,0.00030059,2]
[400590729,1767736239356,-604.27852476,0.00030113,31]
[400590731,1767736239365,-604.27852476,0.00030198,35]
[400590734,1767736239374,-214.27,0.000302,30]
[400590736,1767736239384,-899.0,0.00030274,2]
[400590738,1767736239394,-901.0,0.00030283,2]
[400590740,1767736239405,-604.27852476,0.00030283,39]
[400590741,1767736239414,-604.27852476,0.00030369,42]
[400590744,1767736239425,-1707.79145292,0.00030429,2]
[400590746,1767736239435,-11495.57013769,0.00030429,2]
[400590748,1767736239444,-899.0,0.00030441,2]
[400590750,1767736239453,-151.0,0.00030451,7]
[400590752,1767736239463,-604.27852476,0.00030454,46]
[400590753,1767736239472,-901.0,0.00030466,7]
[400590755,1767736239482,-298.26089446,0.00030537,2]
[400590758,1767736239492,-604.27852476,0.0003054,50]
[400590762,1767736239503,-899.0,0.0003055,2]
[400590766,1767736239513,-604.27852476,0.00030625,54]
[400590768,1767736239523,-899.0,0.00030631,7]
[400590770,1767736239534,-901.0,0.00030678,2]
[400590772,1767736239543,-899.0,0.00030685,2]
[400590774,1767736239552,-604.27852476,0.00030711,57]
[400590776,1767736239561,-604.27852476,0.00030796,61]
[400590778,1767736239571,-604.27852476,0.00030882,65]
[400590780,1767736239580,-1364.493,0.00030913,2]
[400590782,1767736239590,-614.0,0.00030913,2]
[400590784,1767736239599,-3474.321,0.00030913,2]
[400590786,1767736239609,-438.455,0.00030913,2]
[400590788,1767736239619,-1268.108,0.00030913,2]
[400590789,1767736239628,-250.0,0.00030913,2]
[400590792,1767736239638,-6549.0,0.00030913,2]
[400590794,1767736239657,-258.71,0.00030913,2]
[400590797,1767736239668,-4817.0,0.00030913,2]
[400590800,1767736239678,-899.0,0.00030949,2]
[400590803,1767736239688,-604.27852476,0.00030967,69]
[400590806,1767736239697,-18655.0,0.00031,2]
[400590808,1767736239707,-2051.8,0.00031017,2]
[400590812,1767736239717,-604.27852476,0.00031053,72]
[400590815,1767736239727,-604.27852476,0.00031138,76]
[400590818,1767736239737,-214.27,0.000312,30]
[400590821,1767736239747,-604.27852476,0.00031223,80]
[400590824,1767736239756,-899.0,0.00031256,2]
[400590826,1767736239766,-502.0,0.00031309,3]
[400590829,1767736239775,-604.27852476,0.00031309,83]
[400590832,1767736239785,-899.0,0.00031388,2]
[400590835,1767736239795,-604.27852476,0.00031394,87]
[400590838,1767736239804,-604.27852476,0.0003148,91]
[400590841,1767736239814,-604.27852476,0.00031565,95]
[400590843,1767736239823,-899.0,0.00031608,2]
[400590845,1767736239834,-899.0,0.00031646,2]
[400590847,1767736239844,-604.27852476,0.00031651,98]
[400590849,1767736239853,-339.98,0.00031723,30]
[400590851,1767736239863,-374.62342154,0.00031727,2]
[400590853,1767736239872,-604.27852476,0.00031736,102]
[400590855,1767736239881,-5532.0,0.000318,3]
[400590857,1767736239891,-304.13144408,0.00031815,3]
[400590859,1767736239902,-604.27852476,0.00031822,106]
[400590861,1767736239911,-3907.34,0.000319,7]
[400590863,1767736239921,-309.29654756,0.00031906,2]
[400590865,1767736239931,-604.27852476,0.00031907,110]
[400590867,1767736239943,-899.0,0.00031921,2]
[400590869,1767736239953,-899.0,0.00032,2]
[400590871,1767736239963,-500.0,0.00032441,30]
[400590873,1767736239972,-500.0,0.00032441,30]
[400590875,1767736239983,-5532.0,0.000326,5]
[400590877,1767736239992,-214.27,0.000326,30]
[400590879,1767736240001,-502.0,0.00032741,5]
[400590881,1767736240011,-500.0,0.00032877,5]
[400590883,1767736240020,-584.90650844,0.00032877,7]
[400590885,1767736240034,-584.90650844,0.00032877,7]
[400590887,1767736240044,-584.90650844,0.00032877,7]
[400590889,1767736240053,-584.90650844,0.00032877,7]
[400590891,1767736240063,-584.90650844,0.00032877,7]
[400590893,1767736240073,-584.90650844,0.00032877,7]
[400590895,1767736240082,-584.90650844,0.00032877,7]
[400590898,1767736240092,-584.90650844,0.00032877,7]
[400590900,1767736240102,-584.90650844,0.00032877,7]
[400590902,1767736240111,-584.90650844,0.00032877,7]
[400590904,1767736240121,-584.90650844,0.00032877,7]
[400590906,1767736240130,-584.90650844,0.00032877,7]
[400590908,1767736240140,-584.90650844,0.00032877,7]
[400590910,1767736240149,-584.90650844,0.00032877,7]
[400590912,1767736240159,-584.90650844,0.00032877,7]
[400590914,1767736240168,-584.90650844,0.00032877,7]
[400590916,1767736240178,-584.90650844,0.00032877,7]
[400590918,1767736240187,-584.90650844,0.00032877,7]
[400590920,1767736240196,-584.90650844,0.00032877,7]
[400590922,1767736240206,-584.90650844,0.00032877,7]
[400590924,1767736240216,-584.90650844,0.00032877,7]
[400590925,1767736240225,-584.90650844,0.00032877,7]
[400590927,1767736240235,-584.90650844,0.00032877,7]
[400590929,1767736240244,-584.90650844,0.00032877,7]
[400590931,1767736240254,-584.90650844,0.00032877,7]
[400590934,1767736240264,-584.90650844,0.00032877,7]
[400590936,1767736240273,-584.90650844,0.00032877,7]
[400590938,1767736240283,-584.90650844,0.00032877,7]
[400590939,1767736240292,-584.90650844,0.00032877,7]
[400590941,1767736240302,-584.90650844,0.00032877,7]
[400590943,1767736240311,-584.90650844,0.00032877,7]
[400590946,1767736240321,-584.90650844,0.00032877,7]
[400590949,1767736240331,-584.90650844,0.00032877,7]
[400590950,1767736240340,-584.90650844,0.00032877,7]
[400590953,1767736240350,-584.90650844,0.00032877,7]
[400590955,1767736240359,-584.90650844,0.00032877,7]
[400590957,1767736240369,-584.90650844,0.00032877,7]
[400590958,1767736240379,-584.90650844,0.00032877,7]
[400590961,1767736240388,-584.90650844,0.00032877,7]
[400590963,1767736240398,-584.90650844,0.00032877,7]
[400590965,1767736240407,-584.90650844,0.00032877,7]
[400590967,1767736240421,-584.90650844,0.00032877,7]
[400590969,1767736240431,-584.90650844,0.00032877,7]
[400590971,1767736240440,-584.90650844,0.00032877,7]
[400590973,1767736240450,-584.90650844,0.00032877,7]
[400590975,1767736240460,-584.90650844,0.00032877,7]
[400590977,1767736240469,-584.90650844,0.00032877,7]
[400590979,1767736240479,-584.90650844,0.00032877,7]
[400590982,1767736240489,-584.90650844,0.00032877,7]
[400590984,1767736240499,-584.90650844,0.00032877,7]
[400590986,1767736240508,-584.90650844,0.00032877,7]
[400590988,1767736240517,-624.05744336,0.00032877,7]
[400590990,1767736240527,-624.05744336,0.00032877,7]
[400590992,1767736240537,-624.05744336,0.00032877,7]
[400590994,1767736240547,-624.05744336,0.00032877,7]
[400590996,1767736240557,-624.05744336,0.00032877,7]
[400590998,1767736240566,-624.05744336,0.00032877,7]
[400591000,1767736240575,-624.05744336,0.00032877,7]
[400591002,1767736240585,-624.05744336,0.00032877,7]
[400591004,1767736240595,-624.05744336,0.00032877,7]
[400591006,1767736240605,-624.05744336,0.00032877,7]
[400591008,1767736240615,-624.05744336,0.00032877,7]
[400591010,1767736240625,-624.05744336,0.00032877,7]
[400591012,1767736240636,-624.05744336,0.00032877,7]
[400591014,1767736240647,-624.05744336,0.00032877,7]
[400591016,1767736240657,-624.05744336,0.00032877,7]
[400591018,1767736240667,-624.05744336,0.00032877,7]
[400591020,1767736240677,-624.05744336,0.00032877,7]
[400591023,1767736240687,-624.05744336,0.00032877,7]
[400591025,1767736240697,-624.05744336,0.00032877,7]
[400591027,1767736240707,-624.05744336,0.00032877,7]
[400591029,1767736240717,-624.05744336,0.00032877,7]
[400591031,1767736240727,-624.05744336,0.00032877,7]
[400591033,1767736240738,-624.05744336,0.00032877,7]
[400591035,1767736240748,-624.05744336,0.00032877,7]
[400591037,1767736240758,-624.05744336,0.00032877,7]
[400591039,1767736240768,-624.05744336,0.00032877,7]
[400591041,1767736240778,-624.05744336,0.00032877,7]
[400591043,1767736240788,-624.05744336,0.00032877,7]
[400591045,1767736240798,-624.05744336,0.00032877,7]
[400591047,1767736240808,-624.05744336,0.00032877,7]
[400591049,1767736240818,-624.05744336,0.00032877,7]
[400591051,1767736240828,-624.05744336,0.00032877,7]
[400591053,1767736240837,-624.05744336,0.00032877,7]
[400591055,1767736240847,-624.05744336,0.00032877,7]
[400591057,1767736240857,-624.05744336,0.00032877,7]
[400591059,1767736240867,-724.05744337,0.00032877,7]
[400591061,1767736240877,-724.05744337,0.00032877,7]
[400591063,1767736240887,-724.05744337,0.00032877,7]
[400591065,1767736240896,-724.05744337,0.00032877,7]
[400591067,1767736240906,-724.05744337,0.00032877,7]
[400591069,1767736240915,-1008.2,0.000329,14]
[400591071,1767736240925,-715.48,0.000329,14]
[400591073,1767736240934,-1707.79145292,0.00033018,2]
[400591076,1767736240949,-11495.57013769,0.00033018,2]
[400591078,1767736240958,-2051.8,0.00033095,3]
[400591080,1767736240968,-273.53,0.00033151,2]
[400591102,1767736241169,-154.98,0.00033215,2]
[400591104,1767736241179,-320.74051982,0.00033275,2]
[400591106,1767736241190,-477.82498524,0.00033388,2]
[400591108,1767736241199,-1329.0,0.00033913,2]
[400591110,1767736241209,-614.0,0.00033913,2]
[400591112,1767736241218,-3466.0,0.00033913,2]
[400591114,1767736241227,-433.0,0.00033913,2]
[400591116,1767736241237,-1266.0,0.00033913,2]
[400591118,1767736241246,-150.0,0.00033913,2]
[400591120,1767736241256,-4991.723,0.00033913,2]
[400591122,1767736241265,-4817.0,0.00033913,2]
[400591123,1767736241274,-150.41,0.000341,6]
[400591124,1767736241284,-619.90673469,0.00034109,2]
[400591125,1767736241293,-502.0,0.00034173,6]
[400591126,1767736241302,-332.60791905,0.00034644,2]
[400591127,1767736241311,-715.48,0.000347,14]
[400591128,1767736241320,-236.74555436,0.00034838,13]
[400591129,1767736241329,-214.27,0.000349,30]
[400591130,1767736241338,-2051.8,0.00035174,4]
[400591131,1767736241348,-416.9074,0.0003522,30]
[400591132,1767736241357,-1008.2,0.000355,14]
[400591133,1767736241366,-502.0,0.00035605,8]
[400591134,1767736241375,-1707.79145292,0.00035607,2]
[400591135,1767736241384,-374.62342154,0.00035611,2]
[400591136,1767736241394,-254.04937272,0.00035616,95]
[400591138,1767736241403,-550.5,0.00035616,22]
[400591140,1767736241413,-583.2,0.00035616,40]
[400591142,1767736241422,-300.0,0.00035616,5]
[400591144,1767736241433,-500.0,0.00035616,7]
[400591146,1767736241443,-500.0,0.00035616,7]
[400591148,1767736241452,-500.0,0.00035616,7]
[400591150,1767736241461,-500.0,0.00035616,7]
[400591152,1767736241470,-500.0,0.00035616,7]
[400591154,1767736241480,-500.0,0.00035616,7]
[400591156,1767736241489,-427.78775089,0.00035616,7]
[400591158,1767736241498,-500.0,0.00035616,7]
[400591160,1767736241507,-500.0,0.00035616,7]
[400591162,1767736241516,-500.0,0.00035616,7]
[400591164,1767736241526,-500.0,0.00035616,7]
[400591166,1767736241535,-500.0,0.00035616,7]
[400591168,1767736241544,-500.0,0.00035616,7]
[400591170,1767736241553,-500.0,0.00035616,7]
[400591172,1767736241563,-500.0,0.00035616,7]
[400591174,1767736241572,-500.0,0.00035616,7]
[400591176,1767736241581,-500.0,0.00035616,7]
[400591178,1767736241591,-500.0,0.00035616,7]
[400591181,1767736241600,-500.0,0.00035616,7]
[400591183,1767736241609,-500.0,0.00035616,7]
[400591185,1767736241618,-500.0,0.00035616,7]
[400591187,1767736241628,-500.0,0.00035616,7]
[400591189,1767736241637,-428.21421177,0.00035616,7]
[400591191,1767736241646,-344.91441206,0.00036013,2]
[400591193,1767736241655,-339.98,0.00036049,30]
[400591194,1767736241666,-530.0,0.00036082,2]
[400591197,1767736241675,-600.0,0.00036438,5]
[400591198,1767736241684,-477.82498524,0.00036716,2]
[400591201,1767736241694,-715.48,0.000368,14]
[400591203,1767736241703,-1329.0,0.00036913,2]
[400591204,1767736241712,-614.0,0.00036913,2]
[400591206,1767736241722,-3466.0,0.00036913,2]
[400591208,1767736241732,-433.0,0.00036913,2]
[400591210,1767736241741,-1266.0,0.00036913,2]
[400591212,1767736241751,-150.0,0.00036913,2]
[400591214,1767736241761,-4817.0,0.00036913,2]
[400591216,1767736241770,-1983.0,0.00037,2]
[400591219,1767736241780,-502.0,0.00037037,10]
[400591221,1767736241789,-1129.45,0.0003705,2]
[400591223,1767736241799,-646.81,0.000372,30]
[400591225,1767736241809,-150.0,0.000372,2]
[400591227,1767736241818,-214.27,0.000372,30]
[400591229,1767736241828,-2051.8,0.00037252,5]
[400591231,1767736241837,-900.0,0.0003726,5]
[400591233,1767736241846,-1008.2,0.000373,14]
[400591235,1767736241856,-357.6762453,0.00037382,2]
[400591237,1767736241865,-154.98,0.00037401,2]
[400591239,1767736241874,-200.0,0.00037858,2]
[400591241,1767736241884,-200.0,0.00037858,2]
[400591243,1767736241893,-200.0,0.00037858,2]
[400591245,1767736241902,-200.0,0.00037858,2]
[400591246,1767736241911,-200.0,0.00037858,2]
[400591249,1767736241920,-200.0,0.00037858,2]
[400591251,1767736241930,-200.0,0.00037858,2]
[400591252,1767736241939,-200.0,0.00037858,2]
[400591255,1767736241951,-200.0,0.00037858,2]
[400591256,1767736241960,-200.0,0.00037858,2]
[400591259,1767736241970,-200.0,0.00037858,2]
[400591260,1767736241980,-200.0,0.00037858,2]
[400591263,1767736241990,-200.0,0.00037858,2]
[400591265,1767736241999,-200.0,0.00037858,2]
[400591266,1767736242008,-200.0,0.00037858,2]
[400591268,1767736242020,-200.0,0.00037858,2]
[400591270,1767736242029,-200.0,0.00037858,2]
[400591273,1767736242038,-200.0,0.00037858,2]
[400591275,1767736242047,-200.0,0.00037858,2]
[400591276,1767736242056,-200.0,0.00037858,2]
[400591278,1767736242069,-200.0,0.00037858,2]
[400591280,1767736242078,-200.0,0.00037858,2]
[400591282,1767736242088,-200.0,0.00037858,2]
[400591285,1767736242098,-200.0,0.00037858,2]
[400591286,1767736242107,-200.0,0.00037858,2]
[400591289,1767736242117,-200.0,0.00037858,2]
[400591291,1767736242127,-200.0,0.00037858,2]
[400591293,1767736242137,-200.0,0.00037858,2]
[400591295,1767736242147,-200.0,0.00037858,2]
[400591297,1767736242156,-200.0,0.00037858,2]
[400591299,1767736242166,-200.0,0.00037858,2]
[400591301,1767736242175,-200.0,0.00037858,2]
[400591303,1767736242184,-200.0,0.00037858,2]
[400591305,1767736242193,-200.0,0.00037858,2]
[400591307,1767736242203,-200.0,0.00037858,2]
[400591308,1767736242213,-200.0,0.00037858,2]
[400591310,1767736242222,-170.0,0.00037858,2]
[400591312,1767736242231,-800.0,0.00037858,13]
[400591314,1767736242241,-800.0,0.00037858,13]
[400591316,1767736242250,-800.0,0.00037858,13]
[400591318,1767736242259,-800.0,0.00037858,13]
[400591320,1767736242268,-800.0,0.00037858,13]
[400591322,1767736242278,-800.0,0.00037858,13]
[400591324,1767736242287,-800.0,0.00037858,13]
[400591326,1767736242297,-800.0,0.00037858,13]
[400591328,1767736242306,-800.0,0.00037858,13]
[400591330,1767736242316,-800.0,0.00037858,13]
[400591332,1767736242329,-800.0,0.00037858,13]
[400591334,1767736242338,-800.0,0.00037858,13]
[400591336,1767736242348,-800.0,0.00037858,13]
[400591339,1767736242362,-800.0,0.00037858,13]
[400591341,1767736242372,-800.0,0.00037858,13]
[400591343,1767736242382,-800.0,0.00037858,13]
[400591345,1767736242391,-800.0,0.00037858,13]
[400591347,1767736242400,-800.0,0.00037858,13]
[400591349,1767736242409,-800.0,0.00037858,13]
[400591351,1767736242418,-800.0,0.00037858,13]
[400591354,1767736242427,-800.0,0.00037858,13]
[400591356,1767736242436,-800.0,0.00037858,13]
[400591358,1767736242445,-800.0,0.00037858,13]
[400591360,1767736242455,-800.0,0.00037858,13]
[400591362,1767736242464,-800.0,0.00037858,13]
[400591364,1767736242475,-800.0,0.00037858,13]
[400591366,1767736242487,-800.0,0.00037858,13]
[400591368,1767736242496,-800.0,0.00037858,13]
[400591370,1767736242506,-800.0,0.00037858,13]
[400591372,1767736242515,-800.0,0.00037858,13]
[400591374,1767736242525,-800.0,0.00037858,13]
[400591376,1767736242534,-800.0,0.00037858,13]
[400591378,1767736242543,-800.0,0.00037858,13]
[400591380,1767736242552,-800.0,0.00037858,13]
[400591382,1767736242561,-800.0,0.00037858,13]
[400591384,1767736242571,-800.0,0.00037858,13]
[400591386,1767736242579,-800.0,0.00037858,13]
[400591388,1767736242589,-800.0,0.00037858,13]
[400591390,1767736242598,-800.0,0.00037858,13]
[400591392,1767736242608,-800.0,0.00037858,13]
[400591394,1767736242617,-800.0,0.00037858,13]
[400591396,1767736242626,-800.0,0.00037858,13]
[400591398,1767736242635,-800.0,0.00037858,13]
[400591400,1767736242646,-800.0,0.00037858,13]
[400591402,1767736242655,-800.0,0.00037858,13]
[400591404,1767736242664,-800.0,0.00037858,13]
[400591406,1767736242674,-800.0,0.00037858,13]
[400591408,1767736242682,-800.0,0.00037858,13]
[400591410,1767736242691,-800.0,0.00037858,13]
[400591412,1767736242700,-800.0,0.00037858,13]
[400591414,1767736242710,-800.0,0.00037858,13]
[400591416,1767736242719,-800.0,0.00037858,13]
[400591417,1767736242729,-800.0,0.00037858,13]
[400591419,1767736242738,-800.0,0.00037858,13]
[400591421,1767736242748,-800.0,0.00037858,13]
[400591423,1767736242757,-800.0,0.00037858,13]
[400591425,1767736242766,-800.0,0.00037858,13]
[400591428,1767736242776,-800.0,0.00037858,13]
[400591430,1767736242786,-800.0,0.00037858,13]
[400591431,1767736242795,-800.0,0.00037858,13]
[400591433,1767736242805,-800.0,0.00037858,13]
[400591435,1767736242814,-800.0,0.00037858,13]
[400591437,1767736242823,-213.0,0.00037858,13]
[400591439,1767736242832,-800.0,0.00037858,13]
[400591441,1767736242841,-800.0,0.00037858,13]
[400591443,1767736242850,-800.0,0.00037858,13]
[400591445,1767736242859,-800.0,0.00037858,13]
[400591447,1767736242869,-800.0,0.00037858,13]
[400591449,1767736242878,-800.0,0.00037858,13]
[400591451,1767736242887,-800.0,0.00037858,13]
[400591453,1767736242896,-800.0,0.00037858,13]
[400591455,1767736242905,-800.0,0.00037858,13]
[400591457,1767736242914,-800.0,0.00037858,13]
[400591459,1767736242923,-800.0,0.00037858,13]
[400591461,1767736242931,-800.0,0.00037858,13]
[400591463,1767736242943,-800.0,0.00037858,13]
[400591465,1767736242952,-251.0,0.00037858,13]
[400591467,1767736242961,-12693.16,0.0003806,2]
[400591469,1767736242970,-1200.0,0.00038082,5]
[400591471,1767736242979,-715.48,0.000381,14]
[400591473,1767736242990,-1707.79145292,0.00038195,2]
[400591475,1767736242999,-1000.0,0.00038356,5]
[400591477,1767736243008,-502.0,0.00038469,11]
[400591479,1767736243020,-370.91026638,0.00038751,2]
[400591481,1767736243030,-992.86947112,0.00038767,5]
[400591483,1767736243040,-1035.6177,0.00038888,30]
[400591485,1767736243050,-1129.45,0.00038903,2]
[400591487,1767736243059,-1500.0,0.00038904,5]
[400591489,1767736243068,-214.27,0.00039,30]
[400591491,1767736243078,-237.12745582,0.00039078,120]
[400591493,1767736243088,-1940.44,0.000391,30]
[400591495,1767736243097,-1008.2,0.000391,14]
[400591497,1767736243106,-1551.65362228,0.00039129,2]
[400591499,1767736243115,-1551.65362228,0.00039129,2]
[400591501,1767736243125,-715.48,0.000392,14]
[400591503,1767736243135,-2051.8,0.00039331,6]
[400591505,1767736243144,-374.62342154,0.00039495,2]
[400591507,1767736243153,-227.93655114,0.00039802,2]
[400591509,1767736243162,-3907.34,0.000399,14]
[400591511,1767736243171,-502.0,0.00039901,13]
[400591513,1767736243180,-1329.0,0.00039913,2]
[400591515,1767736243190,-3466.0,0.00039913,2]
[400591517,1767736243199,-433.0,0.00039913,2]
[400591519,1767736243208,-1266.0,0.00039913,2]
[400591521,1767736243217,-150.0,0.00039913,2]
[400591523,1767736243226,-4817.0,0.00039913,2]
[400591525,1767736243235,-250.0,0.0004,45]
[400591527,1767736243244,-152.0,0.0004,120]
[400591529,1767736243253,-152.0,0.0004,120]
[400591531,1767736243262,-6183.1956201,0.0004,120]
[400591533,1767736243271,-250.0,0.0004,45]
[400591535,1767736243281,-1022.62372196,0.0004,30]
[400591537,1767736243290,-792.0,0.0004,2]
[400591539,1767736243299,-250.0,0.0004,45]
[400591541,1767736243308,-156.15185607,0.00040043,2]
[400591543,1767736243318,-477.82498524,0.00040045,28]
[400591560,1767736243450,-384.63394623,0.0004012,2]
[400591563,1767736243474,-384.68,0.000402,120]
[400591565,1767736243483,-339.98,0.00040375,120]
[400591567,1767736243493,-1000.0,0.00040386,21]
[400591569,1767736243501,-715.48,0.000404,14]
[400591571,1767736243511,-250.0,0.000405,45]
[400591573,1767736243520,-214.27,0.000405,30]
[400591575,1767736243530,-1983.10251088,0.000407,2]
[400591577,1767736243539,-152.0,0.000407,120]
[400591579,1767736243549,-152.0,0.000407,120]
[400591582,1767736243558,-153.0,0.00040739,120]
[400591585,1767736243567,-1129.45,0.00040755,2]
[400591587,1767736243577,-153.0,0.00040773,120]
[400591589,1767736243586,-153.0,0.00040773,120]
[400591591,1767736243595,-153.0,0.00040773,120]
[400591593,1767736243604,-1707.79145292,0.00040784,15]
[400591595,1767736243613,-153.0,0.00040839,120]
[400591597,1767736243622,-153.0,0.00040873,120]
[400591599,1767736243631,-153.0,0.00040973,120]
[400591601,1767736243640,-1021.0,0.00041,30]
[400591603,1767736243649,-791.0,0.00041,30]
[400591605,1767736243658,-4598.80289917,0.00041,30]
[400591607,1767736243667,-153.0,0.00041073,120]
[400591609,1767736243676,-500.0,0.00041095,120]
[400591611,1767736243685,-500.0,0.00041095,120]
[400591613,1767736243695,-500.0,0.00041095,120]
[400591615,1767736243704,-500.0,0.00041095,120]
[400591617,1767736243715,-500.0,0.00041095,120]
[400591619,1767736243724,-500.0,0.00041095,2]
[400591621,1767736243733,-500.0,0.00041095,2]
[400591623,1767736243742,-500.0,0.00041095,2]
[400591625,1767736243751,-500.0,0.00041095,2]
[400591627,1767736243761,-500.0,0.00041095,2]
[400591629,1767736243770,-500.0,0.00041095,2]
[400591631,1767736243779,-500.0,0.00041095,2]
[400591633,1767736243789,-500.0,0.00041095,2]
[400591635,1767736243798,-500.0,0.00041095,2]
[400591637,1767736243807,-500.0,0.00041095,2]
[400591639,1767736243816,-500.0,0.00041095,2]
[400591641,1767736243826,-500.0,0.00041095,2]
[400591643,1767736243836,-322.07363945,0.00041095,2]
[400591645,1767736243845,-500.0,0.00041095,2]
[400591647,1767736243854,-500.0,0.00041095,2]
[400591649,1767736243863,-500.0,0.00041095,2]
[400591651,1767736243872,-500.0,0.00041095,2]
[400591653,1767736243880,-500.0,0.00041095,2]
[400591655,1767736243890,-500.0,0.00041095,2]
[400591657,1767736243899,-500.0,0.00041095,2]
[400591659,1767736243908,-500.0,0.00041095,2]
[400591661,1767736243917,-500.0,0.00041095,2]
[400591663,1767736243925,-500.0,0.00041095,2]
[400591665,1767736243934,-500.0,0.00041095,2]
[400591667,1767736243946,-500.0,0.00041095,2]
[400591668,1767736243955,-500.0,0.00041095,2]
[400591671,1767736243965,-500.0,0.00041095,2]
[400591672,1767736243974,-500.0,0.00041095,2]
[400591674,1767736243983,-500.0,0.00041095,2]
[400591676,1767736243993,-500.0,0.00041095,2]
[400591679,1767736244003,-500.0,0.00041095,2]